bitfinex-derivatives/quotes_ETHF0:USTF0_20260208
["timestamp","ask_amount","ask_price","bid_price","bid_amount"]
[1770525465571,10.04473007,2079.3,2078.5,10.59190914]
[1770525466975,0.0052375,2079.3,2078.5,10.59190914]
[1770525467382,0.0052375,2079.3,2078.5,13.44585094]
[1770525467582,9.1064338,2079.4,2078.6,10.59190914]
[1770525468479,9.11056492,2079.4,2078.6,10.59190914]
[1770525477291,9.11056492,2079.4,2078.7,10.59190914]
[1770525481396,9.11056492,2079.4,2078.6,10.59190914]
[1770525481600,10.03949257,2079.2,2078.6,10.59190914]
[1770525484899,0.00413112,2079.4,2078.6,10.59190914]
[1770525485096,10.03949257,2079.3,2078.6,10.59190914]
[1770525485294,10.04362369,2079.4,2078.6,11.51815134]
[1770525485498,10.04362369,2079.4,2078.9,10.59190914]
[1770525485699,10.19144721,2079.4,2078.9,10.59190914]
[1770525487300,0.00413112,2079.4,2078.9,10.59190914]
[1770525487506,10.19144721,2079.4,2078.9,10.59190914]
[1770525490208,10.19144721,2079.4,2078.8,10.43325471]
[1770525490408,10.19144721,2079.4,2078.7,10.43325471]
[1770525491713,10.19144721,2079.4,2078.7,11.35949691]
[1770525492313,10.19144721,2079.4,2078.8,10.43325471]
[1770525492817,10.19144721,2079.4,2078.9,10.52255997]
[1770525493419,0.00413112,2079.4,2078.9,10.52255997]
[1770525493610,10.51829942,2079.4,2078.9,10.52255997]
[1770525493815,10.51829942,2079.4,2078.8,13.37650177]
[1770525494014,10.51829942,2079.4,2078.9,4.51679499]
[1770525494215,10.51829942,2079.4,2078.8,13.37650177]
[1770525494514,10.51829942,2079.4,2078.9,10.52255997]
[1770525498622,10.51829942,2079.4,2079.0,10.52255997]
[1770525503824,0.00413112,2079.4,2079.0,10.52255997]
[1770525504725,10.51829942,2079.4,2079.0,10.52255997]
[1770525506533,10.51829942,2079.4,2078.8,17.69449205]
[1770525506721,10.51829942,2079.4,2078.9,4.51310911]
[1770525506926,10.51829942,2079.4,2078.9,15.03566908]
[1770525507133,10.51829942,2079.4,2078.9,10.52255997]
[1770525507734,10.51829942,2079.4,2078.7,13.37650177]
[1770525508732,10.51829942,2079.4,2078.6,2.8539418]
[1770525508933,10.51829942,2079.4,2078.6,17.87904191]
[1770525509130,10.51829942,2079.4,2078.6,13.37650177]
[1770525509333,10.51829942,2079.4,2078.7,10.52255997]
[1770525511341,0.00413112,2079.4,2078.8,10.52255997]
[1770525511838,10.51829942,2079.4,2078.8,10.52255997]
[1770525513532,0.00413112,2079.4,2078.8,10.52255997]
[1770525513834,10.51829942,2079.4,2078.8,10.52255997]
[1770525517143,15.38244588,2079.6,2078.8,11.44865691]
[1770525517338,9.65886043,2079.6,2079.0,9.89231237]
[1770525518242,9.66230696,2079.6,2079.0,9.89231237]
[1770525525347,0.00344653,2079.6,2079.0,10.81840931]
[1770525526651,5.72358545,2079.9,2079.3,9.89231237]
[1770525526652,9.65886043,2079.9,2079.3,9.89231237]
[1770525527053,15.38244588,2080.1,2079.3,9.89231237]
[1770525527446,9.65886043,2080.1,2079.4,9.89231237]
[1770525527749,9.66485934,2080.1,2079.4,9.89231237]
[1770525527950,0.00599891,2080.1,2079.4,10.81840931]
[1770525528553,9.66485934,2080.1,2079.4,10.81840931]
[1770525528747,0.00599891,2080.1,2079.4,10.81840931]
[1770525529557,0.00599891,2080.1,2079.5,9.89231237]
[1770525531760,0.00599891,2080.1,2079.7,9.89231237]
[1770525531952,9.65886043,2080.4,2079.7,9.89647629]
[1770525532154,9.65886043,2080.6,2079.9,9.89231237]
[1770525533060,9.66300414,2080.6,2079.9,9.89231237]
[1770525536062,9.66300414,2080.6,2079.7,9.89647629]
[1770525536360,9.66300414,2080.6,2079.7,10.2023793]
[1770525542158,16.83973383,2081.1,2080.2,9.89231237]
[1770525542462,9.65886043,2081.1,2080.2,9.89231237]
[1770525543157,9.66317545,2081.1,2080.2,9.89231237]
[1770525543461,0.00431502,2081.1,2080.5,9.89231237]
[1770525543858,9.66317545,2081.1,2080.5,9.89231237]
[1770525544157,0.00431502,2081.1,2080.5,9.89231237]
[1770525545357,9.66317545,2081.1,2080.3,9.89231237]
[1770525545967,9.66317545,2081.1,2080.1,10.26009378]
[1770525554666,9.9317569,2080.9,2079.9,10.06604336]
[1770525554872,9.9317569,2080.9,2079.8,10.06604336]
[1770525559977,9.9317569,2080.9,2079.9,10.06604336]
[1770525560673,10.1722169,2080.9,2079.8,12.92911544]
[1770525560967,9.9317569,2080.6,2079.7,10.07020728]
[1770525562769,9.9317569,2080.6,2079.5,2.86307208]
[1770525562770,9.9317569,2080.6,2079.5,2.25673552]
[1770525563073,9.9317569,2080.6,2078.9,10.06604336]
[1770525563074,5.72358545,2079.8,2078.9,10.06604336]
[1770525563271,9.9317569,2079.7,2078.9,10.06604336]
[1770525563873,9.9317569,2079.7,2078.9,10.07186522]
[1770525572095,9.9317569,2080.1,2078.9,10.07186522]
[1770525572690,9.9317569,2080.3,2078.9,10.07186522]
[1770525572989,9.9317569,2080.3,2079.1,10.06604336]
[1770525578499,10.19937633,2080.1,2079.0,9.92165361]
[1770525580392,9.95881633,2080.0,2079.0,9.92165361]
[1770525586310,9.95881633,2079.9,2079.0,9.92165361]
[1770525590912,9.95881633,2079.8,2079.0,9.92165361]
[1770525591909,9.95881633,2079.9,2079.0,9.92165361]
[1770525592114,9.95881633,2080.0,2079.0,9.92165361]
[1770525592314,15.68240178,2080.0,2079.0,9.92165361]
[1770525592817,9.95881633,2080.0,2079.2,9.92165361]
[1770525595211,10.88463109,2080.0,2079.1,9.92165361]
[1770525595410,9.95881633,2079.9,2079.1,9.92165361]
[1770525602424,9.95881633,2079.9,2079.1,10.84749504]
[1770525603325,9.95881633,2079.9,2079.1,9.92165361]
[1770525610126,9.8701044,2079.5,2078.9,10.14499354]
[1770525610325,9.87401522,2079.5,2078.9,10.14499354]
[1770525615634,0.00391082,2079.5,2078.9,10.14499354]
[1770525615836,15.57119903,2079.8,2079.1,10.16007267]
[1770525616025,15.57119903,2079.9,2079.3,10.16007267]
[1770525616231,9.84761358,2079.9,2079.3,10.16007267]
[1770525616633,20.07661358,2080.1,2079.3,10.16007267]
[1770525616930,9.85249416,2080.1,2079.3,10.16007267]
[1770525617135,9.85249416,2080.1,2079.5,10.16007267]
[1770525620644,15.57119903,2080.5,2079.9,10.16007267]
[1770525620842,9.84761358,2080.5,2079.9,10.16007267]
[1770525621438,9.84761358,2080.3,2079.5,10.16007267]
[1770525621639,9.84761358,2080.1,2079.5,10.16007267]
[1770525634153,0.00393751,2080.3,2079.3,13.0393467]
[1770525634154,9.84761358,2079.9,2079.3,13.0393467]
[1770525634451,9.84761358,2079.9,2079.3,10.16007267]
[1770525643860,10.11073007,2080.1,2079.3,11.0859141]
[1770525644057,10.11073007,2080.1,2079.3,10.16007267]
[1770525645259,10.11073007,2080.1,2079.4,10.00287874]
[1770525646259,10.11073007,2080.0,2079.4,10.00287874]
[1770525653871,5.72358545,2080.2,2079.4,10.00287874]
[1770525654067,10.11073007,2080.1,2079.4,10.00287874]
[1770525655467,5.72358545,2080.2,2079.4,10.00287874]
[1770525655673,0.00393751,2080.3,2079.6,10.92872017]
[1770525656061,10.11466758,2080.3,2079.6,10.92872017]
[1770525657571,10.11466758,2080.3,2079.6,10.00287874]
[1770525659674,10.11466758,2080.3,2079.7,10.00287874]
[1770525665874,10.11466758,2080.3,2079.6,12.99325264]
[1770525666073,10.11466758,2080.3,2079.5,17.2961486]
[1770525666273,10.11466758,2080.3,2079.7,10.11209399]
[1770525670972,0.00393751,2080.3,2079.7,10.11209399]
[1770525674980,9.64196189,2080.3,2079.7,10.11209399]
[1770525682387,9.64196189,2080.3,2079.7,12.99325264]
[1770525682589,9.64196189,2080.3,2079.8,9.67200856]
[1770525691189,9.64196189,2080.3,2079.7,12.55316721]
[1770525691389,9.63802438,2080.2,2079.5,16.85606317]
[1770525691589,9.63802438,2080.2,2079.5,12.55316721]
[1770525692285,9.63802438,2080.2,2079.6,9.67200856]
[1770525694092,9.63802438,2080.2,2079.5,12.55316721]
[1770525694491,9.63802438,2080.2,2079.6,9.67200856]
[1770525695284,9.63802438,2080.2,2079.5,2.88115865]
[1770525695488,9.63802438,2080.2,2079.5,7.39628311]
[1770525695789,9.63802438,2080.2,2079.5,17.67873488]
[1770525695989,9.63802438,2080.2,2079.5,13.16361042]
[1770525696791,9.63802438,2080.2,2079.6,10.28245177]
[1770525697891,9.63802438,2080.2,2079.4,13.16361042]
[1770525698193,9.74920386,2080.1,2079.4,13.16361042]
[1770525698384,9.74920386,2080.1,2079.4,10.28245177]
[1770525698589,9.74920386,2080.1,2079.4,13.16566114]
[1770525698990,9.74920386,2080.1,2079.4,10.28245177]
[1770525699695,9.74920386,2079.8,2079.1,10.28245177]
[1770525703591,15.47278931,2080.0,2079.1,10.28245177]
[1770525703795,9.74920386,2079.9,2079.1,10.28245177]
[1770525721013,7.09474292,2080.2,2079.1,10.28245177]
[1770525721014,9.74920386,2080.2,2079.4,10.28245177]
[1770525721509,9.74920386,2080.2,2079.4,11.20779137]
[1770525734729,9.58008476,2080.0,2079.3,12.60781459]
[1770525734935,9.58008476,2079.8,2079.3,9.73255622]
[1770525735328,9.58008476,2080.1,2079.3,9.73255622]
[1770525735530,9.58008476,2080.2,2079.5,9.73255622]
[1770525742340,0.00393751,2080.3,2079.5,9.73255622]
[1770525742341,9.58402227,2080.3,2079.7,9.73255622]
[1770525745643,10.50936187,2080.3,2079.7,9.73255622]
[1770525745842,10.50936187,2080.3,2079.6,9.73255622]
[1770525748245,9.58402227,2080.3,2079.7,9.73255622]
[1770525755652,10.50936187,2080.3,2079.7,9.73255622]
[1770525759454,9.58402227,2080.3,2079.7,9.73255622]
[1770525764959,10.50936187,2080.3,2079.6,2.87691214]
[1770525765161,10.50936187,2080.3,2079.6,17.00992422]
[1770525765356,10.50936187,2080.3,2079.6,12.51600491]
[1770525765759,10.50936187,2080.3,2079.6,9.63909277]
[1770525766150,9.59210332,2080.0,2079.4,12.51600491]
[1770525766958,9.59210332,2079.8,2079.3,2.87691214]
[1770525767150,9.59210332,2079.8,2079.2,9.63909277]
[1770525772860,9.59210332,2079.9,2079.2,10.56443237]
[1770525773263,15.31568877,2080.2,2079.5,9.63909277]
[1770525774267,9.59210332,2080.1,2079.5,9.63909277]
[1770525782872,9.59210332,2080.1,2079.2,9.63909277]
[1770525790072,9.59210332,2080.1,2079.2,12.51600491]
[1770525790379,9.59210332,2080.1,2079.3,10.02875065]
[1770525791184,10.00932026,2080.0,2079.3,10.02875065]
[1770525795386,10.00932026,2080.0,2079.4,9.60250748]
[1770525798389,9.42368532,2079.9,2079.4,9.60250748]
[1770525798594,9.42368532,2079.9,2079.3,9.60250748]
[1770525811496,9.42368532,2079.9,2079.4,9.60250748]
[1770525812294,9.42368532,2079.9,2079.3,9.60250748]
[1770525813095,9.42368532,2079.8,2079.3,9.60250748]
[1770525813699,9.42368532,2079.8,2079.2,12.47941962]
[1770525816506,9.42368532,2079.8,2079.3,10.1536135]
[1770525822508,9.42368532,2079.8,2079.2,2.87691214]
[1770525822705,9.42368532,2079.8,2079.2,4.5006321]
[1770525823306,9.42368532,2079.8,2079.1,13.03052564]
[1770525823909,9.42368532,2079.8,2079.1,13.03613403]
[1770525824713,9.42368532,2079.8,2079.2,10.1536135]
[1770525825010,9.42368532,2079.8,2079.1,13.03613403]
[1770525825204,9.42368532,2079.8,2079.2,10.1536135]
[1770525831117,9.42368532,2079.8,2079.1,2.88252053]
[1770525832017,9.42368532,2079.8,2079.1,13.03613403]
[1770525834514,10.03714905,2079.7,2079.1,10.1536135]
[1770525841728,10.03714905,2079.5,2079.0,13.03812403]
[1770525841928,10.03714905,2079.5,2079.0,10.1536135]
[1770525842919,10.03714905,2079.4,2078.9,0.00582186]
[1770525843122,10.03714905,2079.4,2078.9,10.15943536]
[1770525844227,15.7607345,2079.6,2078.9,10.15943536]
[1770525844428,10.03714905,2079.6,2079.1,10.1536135]
[1770525844619,12.12984631,2079.2,2077.8,14.45650946]
[1770525844928,7.09474292,2079.3,2077.4,7.20903063]
[1770525844929,10.03714905,2077.9,2077.4,9.2096135]
[1770525845133,10.03714905,2078.1,2077.5,10.1536135]
[1770525845525,10.0430734,2078.1,2077.5,10.15737881]
[1770525848832,0.00592435,2078.1,2077.5,10.15737881]
[1770525849626,5.75842986,2078.9,2077.5,10.15737881]
[1770525849627,9.44587546,2078.5,2077.7,9.93456304]
[1770525850735,9.45064452,2078.5,2077.7,9.93456304]
[1770525854033,0.00476906,2078.5,2077.9,9.68895901]
[1770525856236,9.36662919,2078.5,2077.9,9.68895901]
[1770525874856,42.873552,2078.6,2078.1,9.68895901]
[1770525875051,5.75842986,2078.9,2078.3,9.68895901]
[1770525875558,9.36186013,2078.8,2078.3,9.68895901]
[1770525875949,9.36655812,2078.8,2078.3,9.68895901]
[1770525879559,10.29257675,2078.8,2078.0,9.58347621]
[1770525879760,10.29257675,2078.8,2078.1,14.11277746]
[1770525880057,10.29257675,2078.8,2078.2,9.58347621]
[1770525886061,0.00469799,2078.8,2078.2,9.58347621]
[1770525886367,9.57195797,2078.8,2078.2,9.58347621]
[1770525888968,9.56725998,2078.5,2077.9,9.58347621]
[1770525897472,9.56725998,2078.5,2077.7,5.74879369]
[1770525897473,16.25170847,2078.4,2077.7,9.58347621]
[1770525897674,5.75842986,2078.4,2077.7,9.58347621]
[1770525897863,9.56725998,2078.5,2077.7,9.58347621]
[1770525898972,9.56725998,2078.6,2077.7,9.58347621]
[1770525899173,0.00469799,2078.8,2078.1,9.58347621]
[1770525899477,9.57195797,2078.8,2078.3,9.58347621]
[1770525900175,0.00469799,2078.8,2078.3,9.58347621]
[1770525904580,0.00469799,2078.8,2078.3,12.46584819]
[1770525904775,0.00469799,2078.8,2078.4,9.58347621]
[1770525907177,9.96018582,2078.8,2078.3,10.26859548]
[1770525907374,9.96018582,2078.8,2078.2,10.26859548]
[1770525916979,9.96018582,2078.8,2078.0,2.88237198]
[1770525917186,10.18283672,2078.5,2077.8,9.7182924]
[1770525918691,10.18283672,2078.4,2077.8,9.7182924]
[1770525919189,10.18283672,2078.2,2077.6,9.7182924]
[1770525919583,10.18283672,2078.2,2077.5,9.72205771]
[1770525921585,10.18283672,2078.2,2077.5,0.00376531]
[1770525921785,10.18283672,2078.2,2077.2,9.7182924]
[1770525922090,10.18283672,2078.1,2077.2,9.7182924]
[1770525922290,10.18283672,2077.9,2077.2,9.7182924]
[1770525922685,10.18283672,2077.9,2077.2,9.7219807]
[1770525923892,10.18283672,2077.6,2076.7,9.7182924]
[1770525924993,10.18283672,2077.6,2076.7,9.72204013]
[1770525925799,10.18283672,2077.4,2076.7,9.72204013]
[1770525926592,10.18283672,2077.4,2076.5,9.7182924]
[1770525926992,10.18283672,2077.1,2076.5,8.78180544]
[1770525927789,10.18781912,2077.1,2076.5,8.78626751]
[1770525927998,0.0049824,2077.1,2076.5,8.78626751]
[1770525928194,10.18283672,2077.5,2076.5,8.78626751]
[1770525929300,10.18704305,2077.5,2076.5,8.78626751]
[1770525934608,0.00420633,2077.5,2076.5,8.78626751]
[1770525935311,0.00420633,2077.5,2076.8,9.7182924]
[1770525935605,10.05248817,2077.9,2076.8,9.7182924]
[1770525935804,10.29327817,2078.1,2076.8,9.7182924]
[1770525936609,10.29762284,2078.1,2076.8,9.7182924]
[1770525939712,10.05683284,2078.1,2076.8,9.7182924]
[1770525943506,5.75842986,2078.5,2077.3,10.30093146]
[1770525943708,10.05248817,2078.6,2077.6,10.06005146]
[1770525944710,10.05605253,2078.6,2077.6,10.06005146]
[1770525944911,0.00356436,2078.6,2077.6,10.06005146]
[1770525945917,10.05248817,2078.9,2077.9,10.06005146]
[1770525947021,10.05625129,2078.9,2077.9,10.06005146]
[1770525954225,10.05248817,2078.6,2077.9,10.06005146]
[1770525955425,10.05248817,2078.6,2077.4,10.06005146]
[1770525963534,10.05248817,2078.2,2077.4,10.06005146]
[1770525966247,10.37602896,2078.0,2077.4,10.06005146]
[1770525966439,10.37602896,2077.8,2077.4,10.06005146]
[1770525967437,10.37602896,2077.8,2077.2,9.86254806]
[1770525973643,10.42691873,2078.0,2077.2,10.78983822]
[1770525976044,10.42691873,2078.0,2077.2,9.86254806]
[1770525976438,10.42691873,2077.6,2077.2,9.86254806]
[1770525976643,10.42691873,2077.6,2077.0,2.86889012]
[1770525976644,10.42691873,2077.6,2077.0,9.99259152]
[1770525977844,10.42691873,2077.4,2077.0,9.99259152]
[1770525978040,10.43270308,2077.4,2077.0,9.99259152]
[1770525978543,10.43270308,2077.4,2076.8,9.99259152]
[1770525978745,11.35999324,2077.4,2076.8,9.99259152]
[1770525979743,10.43270308,2077.4,2076.8,9.99259152]
[1770525980040,0.00578435,2077.4,2076.8,9.99259152]
[1770525980436,10.42691873,2077.7,2077.0,9.99259152]
[1770525981540,10.43266189,2077.7,2077.0,9.99259152]
[1770525985047,10.42691873,2077.4,2076.7,9.99259152]
[1770525985446,10.42691873,2077.6,2076.7,10.91988168]
[1770525989253,10.42691873,2077.6,2077.0,9.99259152]
[1770525989455,10.43266189,2077.7,2077.2,9.99259152]
[1770525994954,11.35995205,2077.7,2077.0,9.99259152]
[1770525996650,11.35995205,2077.7,2076.9,2.87821699]
[1770525996651,10.41593392,2077.4,2076.9,9.93676781]
[1770525996853,10.41593392,2077.4,2076.7,12.8149848]
[1770525997054,10.41593392,2077.4,2076.8,14.42151289]
[1770525997258,10.41593392,2077.4,2076.8,9.93676781]
[1770526000257,6.69146318,2077.7,2076.6,9.93676781]
[1770526000258,10.41593392,2077.2,2076.6,9.93676781]
[1770526011564,10.41593392,2077.0,2076.5,9.94122988]
[1770526013066,10.41593392,2077.3,2076.5,10.86852004]
[1770526014175,10.41593392,2077.3,2076.5,9.94122988]
[1770526015879,11.34322408,2077.3,2076.5,9.94122988]
[1770526017976,10.41593392,2077.3,2076.7,9.93676781]
[1770526018178,5.75842986,2077.5,2076.9,9.93676781]
[1770526018377,10.41593392,2077.5,2076.9,9.93676781]
[1770526019793,10.41593392,2077.4,2076.9,9.93676781]
[1770526022493,16.17436378,2077.6,2076.9,9.93676781]
[1770526022986,1.17386332,2077.7,2076.6,0.92729016]
[1770526022987,0.00574316,2077.7,2077.3,9.93676781]
[1770526024095,10.42167708,2077.7,2077.3,9.93676781]
[1770526024694,0.00574316,2077.7,2077.3,9.93676781]
[1770526028992,9.5475156,2077.7,2077.3,9.93676781]
[1770526029385,9.5475156,2077.7,2077.0,9.69592039]
[1770526032999,9.5475156,2077.7,2076.8,10.26965455]
[1770526037198,10.18337034,2077.6,2076.8,10.26965455]
[1770526044006,15.94754336,2077.7,2076.8,10.26965455]
[1770526044307,10.18337034,2077.6,2076.8,10.26965455]
[1770526053711,5.76417302,2077.7,2076.8,10.26965455]
[1770526053906,15.94754336,2077.7,2076.8,10.26965455]
[1770526054314,10.18337034,2077.6,2076.9,10.26965455]
[1770526055011,5.76417302,2077.7,2076.9,11.19718748]
[1770526055212,10.18337034,2077.9,2077.1,10.26965455]
[1770526055511,10.18337034,2077.9,2077.3,10.26965455]
[1770526056311,10.18908147,2077.9,2077.3,10.26965455]
[1770526061113,0.00571113,2077.9,2077.3,10.26965455]
[1770526061613,10.44134821,2078.1,2077.3,10.26965455]
[1770526062008,10.44134821,2078.3,2077.3,10.26965455]
[1770526062618,10.44685266,2078.3,2077.3,10.26965455]
[1770526063411,10.44685266,2078.3,2077.4,10.23696794]
[1770526067515,10.44134821,2078.5,2077.5,10.23696794]
[1770526067815,10.44134821,2078.5,2077.7,10.23696794]
[1770526068514,10.44518069,2078.5,2077.7,10.23696794]
[1770526072925,10.44518069,2078.5,2077.6,10.23696794]
[1770526076029,11.37271362,2078.5,2077.3,10.23696794]
[1770526077124,17.13114348,2078.5,2077.3,10.23696794]
[1770526077325,10.44134821,2078.4,2077.3,10.23696794]
[1770526082026,10.44134821,2078.3,2077.3,10.23696794]
[1770526084130,10.44134821,2078.2,2077.3,10.23696794]
[1770526084332,10.44134821,2078.2,2077.4,10.23696794]
[1770526087434,9.52471109,2078.0,2077.4,10.23696794]
[1770526100633,15.979571,2078.2,2077.4,10.23696794]
[1770526100938,10.22114114,2078.2,2077.6,9.8244391]
[1770526111848,10.22114114,2078.1,2077.6,9.8244391]
[1770526118155,10.27323119,2078.1,2077.6,9.8244391]
[1770526124364,10.27323119,2078.1,2077.6,10.75190579]
[1770526129870,10.27323119,2078.1,2077.6,9.8244391]
[1770526139073,16.03166105,2078.2,2077.6,9.8244391]
[1770526139269,0.00383248,2078.5,2078.1,9.6289978]
[1770526139476,0.00383248,2078.5,2078.1,9.63399273]
[1770526139774,10.27706367,2078.5,2078.1,9.63399273]
[1770526143075,0.00383248,2078.5,2078.1,9.63399273]
[1770526143576,10.27323119,2078.9,2078.1,9.63399273]
[1770526144577,10.27858937,2078.9,2078.1,9.63399273]
[1770526153584,11.2051524,2078.9,2078.1,9.63399273]
[1770526159996,11.2051524,2078.9,2078.1,0.00499493]
[1770526161396,10.34816419,2078.5,2077.7,10.27791973]
[1770526162191,10.34816419,2078.5,2077.7,10.28202125]
[1770526165399,10.34816419,2078.5,2077.8,10.27791973]
[1770526165598,10.34816419,2078.8,2077.9,10.27791973]
[1770526168097,0.00535818,2078.9,2077.9,10.27791973]
[1770526168098,10.35352237,2078.9,2078.1,10.27791973]
[1770526168304,10.35352237,2078.9,2078.2,10.27791973]
[1770526169297,10.35352237,2078.9,2078.4,10.27791973]
[1770526187228,10.15324856,2079.4,2078.4,10.27791973]
[1770526187421,10.15324856,2079.4,2078.6,10.1416092]
[1770526187622,10.15324856,2079.4,2078.7,10.1416092]
[1770526188224,10.15697344,2079.4,2078.7,10.1416092]
[1770526190632,10.15697344,2079.4,2078.4,10.1416092]
[1770526191032,10.15697344,2079.4,2078.4,13.01982619]
[1770526191232,10.15697344,2079.4,2078.5,10.1416092]
[1770526193026,10.15697344,2079.4,2078.3,13.01982619]
[1770526193422,10.15697344,2079.4,2078.3,10.1416092]
[1770526195234,10.15324856,2079.3,2078.3,10.1416092]
[1770526197133,10.15324856,2079.3,2078.3,13.01982619]
[1770526198138,11.07981159,2079.3,2078.3,13.01982619]
[1770526198337,17.35128589,2079.2,2078.2,10.1416092]
[1770526198638,10.15324856,2079.0,2078.2,10.1416092]
[1770526201536,11.07981159,2079.0,2078.1,10.1416092]
[1770526201743,10.15324856,2079.0,2078.1,10.1416092]
[1770526202442,10.15324856,2079.0,2078.0,13.01982619]
[1770526203141,10.15324856,2079.0,2078.1,10.1416092]
[1770526205240,10.15324856,2079.2,2078.3,10.1416092]
[1770526205445,10.15697344,2079.4,2078.5,10.1416092]
[1770526205938,10.15697344,2079.4,2078.5,13.01982619]
[1770526206241,10.15697344,2079.4,2078.6,10.12933653]
[1770526206638,10.15697344,2079.4,2078.8,10.12933653]
[1770526206936,0.00372488,2079.4,2078.8,10.12933653]
[1770526209834,0.00372488,2079.4,2078.8,10.43862765]
[1770526211549,0.00372488,2079.4,2079.0,10.12933653]
[1770526214252,0.00372488,2079.4,2079.2,10.40302524]
[1770526214551,0.00372488,2079.4,2079.2,10.4085446]
[1770526221058,10.20813255,2079.9,2079.2,10.4085446]
[1770526222047,0.00512073,2079.9,2079.2,10.4085446]
[1770526222958,10.21325328,2079.9,2079.2,10.4085446]
[1770526223964,10.21325328,2079.9,2079.4,10.40302524]
[1770526224259,0.00512073,2079.9,2079.6,10.40302524]
[1770526228161,10.20813255,2080.2,2079.6,10.40302524]
[1770526228756,10.20813255,2080.3,2079.6,10.40302524]
[1770526229160,10.21264312,2080.3,2079.6,10.40302524]
[1770526231765,10.20813255,2079.7,2079.2,0.00551936]
[1770526231966,10.20813255,2079.7,2079.2,10.4085446]
[1770526232868,10.20813255,2079.3,2078.7,10.40302524]
[1770526233866,10.20813255,2079.3,2078.7,10.40749075]
[1770526241866,10.51472608,2079.5,2078.8,0.92589942]
[1770526242071,10.51472608,2079.6,2078.9,9.83562565]
[1770526243166,10.51472608,2079.4,2078.9,9.83562565]
[1770526243567,10.51472608,2079.4,2078.7,9.84009116]
[1770526254886,10.51472608,2079.2,2078.7,0.00446551]
[1770526255091,10.51472608,2079.2,2078.7,9.84009116]
[1770526260284,10.51472608,2079.4,2078.7,9.84009116]
[1770526260487,10.51472608,2079.7,2079.1,9.83562565]
[1770526264090,10.51472608,2080.0,2079.1,9.83562565]
[1770526265989,8.12393675,2080.1,2079.1,9.83562565]
[1770526265990,9.9662715,2079.8,2079.1,9.83562565]
[1770526266185,9.9662715,2079.6,2078.9,12.47915711]
[1770526266392,8.36449675,2080.1,2078.7,9.60274537]
[1770526266393,9.9662715,2079.4,2078.7,9.60274537]
[1770526270898,9.9662715,2079.6,2078.7,9.60274537]
[1770526271098,9.9662715,2079.6,2078.9,9.59827986]
[1770526274598,10.21687607,2079.8,2078.9,9.59827986]
[1770526284008,10.21687607,2079.8,2078.8,13.05622531]
[1770526285711,10.21687607,2079.8,2078.8,10.17534806]
[1770526290719,10.21687607,2079.8,2078.9,14.79313273]
[1770526290919,10.21687607,2079.8,2079.0,10.17534806]
[1770526293113,17.4149134,2080.0,2079.0,11.10141083]
[1770526293313,10.21687607,2080.0,2079.2,10.17534806]
[1770526303727,10.21687607,2080.0,2079.3,9.60407438]
[1770526311036,9.81108208,2080.3,2079.3,9.60407438]
[1770526311235,9.81108208,2080.3,2079.1,9.60407438]
[1770526311236,10.73714485,2080.3,2079.1,9.60407438]
[1770526311538,9.80657151,2080.2,2079.0,9.60407438]
[1770526311932,9.80657151,2080.1,2079.0,9.60407438]
[1770526313136,9.80657151,2080.1,2079.2,9.60407438]
[1770526316434,9.80657151,2080.1,2079.3,9.60407438]
[1770526321340,9.80657151,2080.1,2079.4,9.60407438]
[1770526323939,0.00451057,2080.3,2079.5,9.60407438]
[1770526324141,0.00451057,2080.3,2079.7,9.60407438]
[1770526325045,9.81108208,2080.3,2079.7,9.60407438]
[1770526329642,0.00451057,2080.3,2079.7,9.60407438]
[1770526332848,10.02437486,2080.3,2079.7,9.60407438]
[1770526336252,0.00451057,2080.3,2079.7,9.60407438]
[1770526337553,10.02437486,2080.3,2079.7,9.60407438]
[1770526338854,10.02437486,2080.3,2079.4,9.52642264]
[1770526338855,10.01986429,2080.1,2079.4,9.52642264]
[1770526345159,0.00451057,2080.3,2079.6,9.52642264]
[1770526345350,10.01986429,2080.2,2079.6,9.52642264]
[1770526350658,0.00451057,2080.3,2079.6,9.52642264]
[1770526350861,0.00451057,2080.3,2079.8,9.52642264]
[1770526358163,9.59017813,2080.3,2079.8,9.52642264]
[1770526372987,0.00451057,2080.3,2079.8,9.52642264]
[1770526373483,9.59017813,2080.3,2079.8,9.52642264]
[1770526392087,9.59017813,2080.3,2079.7,12.52446264]
[1770526392292,9.59017813,2080.3,2079.8,9.64346321]
[1770526394595,9.59017813,2080.3,2079.7,13.17565122]
[1770526394894,9.59017813,2080.3,2079.8,10.29465179]
[1770526401299,0.00451057,2080.3,2079.8,10.29465179]
[1770526404403,7.19803733,2080.7,2079.9,10.29465179]
[1770526404699,9.90827275,2080.6,2079.9,10.29465179]
[1770526405202,17.10631008,2080.7,2079.9,10.29465179]
[1770526405402,9.91281011,2080.7,2080.0,10.29465179]
[1770526407603,0.00453736,2080.7,2080.1,10.29465179]
[1770526407802,0.00453736,2080.7,2080.1,13.17565122]
[1770526408006,0.00453736,2080.7,2080.2,10.29465179]
[1770526408202,0.00453736,2080.7,2080.2,10.29993628]
[1770526408903,9.91281011,2080.7,2080.2,0.00528449]
[1770526415403,9.91281011,2080.7,2080.2,10.29993628]
[1770526421013,9.91281011,2080.7,2080.2,0.00528449]
[1770526421509,9.91281011,2080.7,2079.9,12.38026109]
[1770526421699,9.91281011,2080.7,2079.9,9.49941537]
[1770526422609,9.91281011,2080.7,2079.9,9.50301302]
[1770526433518,9.91281011,2080.7,2080.0,9.49941537]
[1770526434017,9.91281011,2080.7,2079.9,0.00359765]
[1770526434220,9.91281011,2080.7,2079.9,4.60357048]
[1770526434412,9.91281011,2080.7,2079.9,14.10298585]
[1770526434608,9.91281011,2080.7,2079.9,9.50301302]
[1770526438419,9.91281011,2080.7,2079.9,12.38385874]
[1770526441023,9.91281011,2080.7,2080.0,9.49941537]
[1770526443726,9.91281011,2080.7,2079.9,12.38385874]
[1770526444025,9.91281011,2080.7,2080.0,9.49941537]
[1770526450032,0.00453736,2080.7,2080.0,9.49941537]
[1770526453440,0.00453736,2080.7,2080.0,10.42440133]
[1770526454445,0.00453736,2080.7,2080.3,10.29176255]
[1770526454739,9.83737875,2080.7,2080.3,10.29176255]
[1770526455046,9.83737875,2080.7,2080.1,10.29176255]
[1770526455844,10.76236471,2080.7,2079.9,13.17620592]
[1770526456144,9.83284139,2080.4,2080.0,10.29176255]
[1770526456337,10.75782735,2080.4,2079.9,0.00359765]
[1770526456745,9.83284139,2080.4,2079.9,0.00359765]
[1770526457445,9.83284139,2080.4,2079.9,10.2953602]
[1770526465657,9.83284139,2080.6,2079.9,10.2953602]
[1770526472767,9.83284139,2080.1,2079.7,9.3513602]
[1770526473472,9.83284139,2080.1,2079.4,2.88084572]
[1770526473473,9.83284139,2080.1,2079.5,10.29176255]
[1770526473764,9.83284139,2080.1,2079.5,10.2963493]
[1770526479274,10.45072879,2079.9,2079.5,10.2963493]
[1770526481372,0.92498596,2080.2,2079.5,10.2963493]
[1770526481575,10.45072879,2080.1,2079.5,10.2963493]
[1770526487476,10.45072879,2079.9,2079.5,0.00458675]
[1770526487876,10.45072879,2079.9,2079.3,13.29165002]
[1770526488076,10.45072879,2079.9,2079.3,10.4108043]
[1770526488875,10.45072879,2079.9,2079.3,10.41484356]
[1770526489176,10.45072879,2079.7,2079.3,0.00403926]
[1770526491178,10.45072879,2079.9,2079.3,10.41484356]